Cogmind - Beta 13 @@@ ROGUE MODE // 2024.04.07 @ 01:09:34 Player: chexo4 Result: Self-destructed Performance ------------- Evolutions (1) 500 Regions Visited (3) 600 Robots Destroyed (25) 125 Value Destroyed (394) 394 Prototype IDs (3) 60 Alien Tech Used (0) 0 Bonus (0) 0 TOTAL SCORE: 1679 Bonus ------- None Cogmind --------- Core Integrity 239/400 Matter 234/300 Energy 100/100 System Corruption 13% Temperature Warm (167) Movement Rolling (100) Location -9/Storage Parts ------- > --- POWER (1) -------- (None) > --- PROPULSION (4) --- Compact Wheel Compact Wheel > --- UTILITY (2) ------ Transport Network Coupler > --- WEAPON (2) ------- (None) > --- INVENTORY (5) ---- Wheel Compact Wheel Advanced Beam Cannon Mining Laser Mining Claw Peak State ------------ > --- POWER ------------ Improved Ion Engine > --- PROPULSION ------- Compact Wheel Compact Wheel Compact Wheel Compact Wheel > --- UTILITY ---------- Small Storage Unit Transport Network Coupler > --- WEAPON ----------- Advanced Beam Cannon Light Assault Rifle > --- INVENTORY -------- Wheel Compact Wheel EM Pulse Gun Mining Laser Welding Torch Mining Claw [Rating: 12] Favorites ----------- Power Light Ion Engine Engine Light Ion Engine Propulsion Compact Wheel Wheel Compact Wheel Utility Small Storage Unit Storage Small Storage Unit Processor Transport Network Coupler Weapon Light Assault Rifle Energy Gun EM Pulse Gun Energy Cannon Advanced Beam Cannon Ballistic Gun Light Assault Rifle Launcher Grenade Launcher Special Weapon Mining Laser Slashing Weapon Mining Claw Build | -11 -10 -9 -9 ------- Run | Yrd Mat Mat Sto Slots Evolved 2 | . . 2 . Power . | . . . . Propulsion 2 | . . 2 . Utility . | . . . . Weapon . | . . . . Parts Attached 33 | 6 5 . 22 Power 4 | 1 1 . 2 Engine 4 | 1 1 . 2 Core . | . . . . Reactor . | . . . . Propulsion 13 | 2 1 . 10 Treads . | . . . . Leg . | . . . . Wheel 13 | 2 1 . 10 Hover . | . . . . Flight . | . . . . Utility 2 | 1 . . 1 Device . | . . . . Storage 1 | 1 . . . Processor 1 | . . . 1 Hackware . | . . . . Protection . | . . . . Artifact . | . . . . Weapon 14 | 2 3 . 9 Energy Gun 3 | 1 . . 2 Energy Cannon 1 | . . . 1 Ballistic Gun 5 | 1 1 . 3 Ballistic Cannon . | . . . . Launcher 3 | . 2 . 1 Special Weapon 1 | . . . 1 Impact Weapon . | . . . . Slashing Weapon 1 | . . . 1 Piercing Weapon . | . . . . Special Melee Weapon . | . . . . Unidentified Prototypes 1 | . . . 1 Parts Lost 14 | . . . 14 Power 3 | . . . 3 Propulsion 6 | . . . 6 Utility 1 | . . . 1 Weapon 4 | . . . 4 Highest Loss Streak 5 | . . . 5 To Critical Strikes . | . . . . Average Slot Usage (%) 74 | . 85 66 69 Engine 10 | . 14 11 8 Wheel 26 | . 28 22 25 Storage 11 | . 14 11 10 Processor 2 | . . . 3 Energy Gun 6 | . 14 11 2 Energy Cannon 3 | . . . 5 Ballistic Gun 8 | . 8 . 8 Launcher 3 | . 5 11 2 Naked Turns . | . . . . Heaviest Build 17 | 13 15 13 17 Greatest Support 64 | 26 26 26 64 Greatest Overweight (x) 3 | 1 . . 3 Average Overweight (x) . | . . . . Largest Inventory Capacity 8 | 8 8 8 8 Average Capacity 7 | 7 8 8 7 Most Carried 8 | 3 6 6 8 Average Carried 4 | 1 3 6 5 Final Capacity 8 | 8 8 8 5 Final Carried 6 | 2 6 6 5 Class Distribution -------------------- 88% | Mutant 11% | Scavenger-Mutant Dominant Class ---------------- Mutant | -10/Materials Mutant | -9/Materials Mutant | -9/Storage Resources | -11 -10 -9 -9 ----------- Run | Yrd Mat Mat Sto Matter Collected 548 | 275 100 . 173 Remotely . | . . . . Salvage Created 788 | 99 274 . 415 Parts 53 | 1 17 . 35 Haulers Intercepted 3 | . 1 . 2 Recyclers Shooed 7 | . . . 7 Parts Field Recycled . | . . . . Retrieved Matter . | . . . . Parts Self-Destructed . | . . . . Prevented . | . . . . Kills | -11 -10 -9 -9 ------- Run | Yrd Mat Mat Sto Combat Hostiles Destroyed 10 | . 3 . 7 Guns 2 | . . . 2 Cannons 4 | . . . 4 AOE 4 | . 3 . 1 Classes Destroyed 10 | 1 5 . 4 Worker 2 | . 1 . 1 Builder 4 | . 2 . 2 Hauler 3 | . 1 . 2 Recycler 3 | 1 1 . 1 Mechanic 1 | . . . 1 Operator 1 | . 1 . . Watcher 1 | . . . 1 Swarmer 3 | . . . 3 Grunt 5 | . 3 . 2 Sentry 2 | . . . 2 Best Kill Streak 9 | 1 5 . 9 Combat Bots Only 7 | . 2 . 7 Max Kills in Single Turn 2 | 1 2 . 1 Gunslinging . | . . . . Exploded 1 | . 1 . 1 Melee . | . . . . Uniques/NPCs Destroyed . | . . . . Combat | -11 -10 -9 -9 -------- Run | Yrd Mat Mat Sto Hostile Shots Fired 100 | . 7 . 93 Missed 32 | . 3 . 29 Damage Taken 1247 | . 47 . 1200 Core 172 | . 11 . 161 Absorbed by Shields . | . . . . Regen/Repaired (Parts) 15 | . . . 15 Core Remaining (%) 97 | 100 95 . . Volleys Fired 79 | 15 13 . 51 Largest 2 | 1 2 . 2 Hottest 100 | 20 70 . 100 Shots Fired 134 | 15 24 . 95 Gun 89 | 15 19 . 55 Cannon 33 | . . . 33 Launcher 8 | . 5 . 3 Special 4 | . . . 4 Kinetic 61 | 15 6 . 40 Thermal 37 | . . . 37 Explosive 8 | . 5 . 3 Electromagnetic 28 | . 13 . 15 Robot Hit Streak 9 | 7 7 . 9 Robot Miss Streak 5 | 4 1 . 5 Penetration Max . | . . . . Secondary Targets . | . . . . Shots Hit Robots 79 | 10 13 . 56 Core Hits 49 | 3 16 . 30 Critical Kills . | . . . . Critical Parts Destroyed . | . . . . Critical Strikes . | . . . . Melee Attacks 8 | . . . 8 Impact . | . . . . Slashing 8 | . . . 8 Piercing . | . . . . Sneak Attacks . | . . . . Combat Hostiles . | . . . . Follow-up Attacks . | . . . . Damage Inflicted 1650 | 68 425 . 1157 Guns 585 | 68 184 . 333 Cannons 469 | . . . 469 Explosions 581 | . 241 . 340 Melee . | . . . . Ramming 15 | . . . 15 Kinetic 332 | 68 33 . 231 Thermal 550 | . . . 550 Explosive 500 | . 241 . 259 Electromagnetic 253 | . 151 . 102 Impact . | . . . . Slashing . | . . . . Piercing . | . . . . Highest Corruption 13 | . . . 13 Average Corruption 12 | . . . 12 Corruption Purged . | . . . . Corruption Blocked . | . . . . Effects 11 | . . . 11 Message Errors 1 | . . . 1 Matter Fused 2 | . . . 2 Heat Flow Errors 1 | . . . 1 Energy Discharges 1 | . . . 1 Parts Rejected 1 | . . . 1 Data Loss (minor) 1 | . . . 1 Misfires 2 | . . . 2 Weapon Failures 2 | . . . 2 Overload Shots . | . . . . Overflow Damage 1 | . . . 1 Projectiles 1 | . . . 1 Explosions . | . . . . Melee . | . . . . Knockbacks . | . . . . Impact . | . . . . Kinetic . | . . . . Secondary . | . . . . Self-Inflicted Damage 7 | . . . 7 Shots . | . . . . Rammed 2 | . . . 2 Targets Rammed 2 | . . . 2 Kicked . | . . . . Crushed . | . . . . Highest Temperature 352 | . 48 . 352 Average Temperature 102 | . 20 . 120 Received Heat Transfer 267 | . 27 . 240 Siege Activations . | . . . . Robots Corrupted . | . . . . Combat Hostiles . | . . . . Parts Fried . | . . . . Impact Corruptions . | . . . . Robots Melted . | . . . . Combat Hostiles . | . . . . Parts Melted . | . . . . Heat Transferred 951 | . . . 951 Parts Sabotaged . | . . . . Parts Stolen . | . . . . Parts Stripped . | . . . . Power Chain Reactions 1 | . . . 1 Alert | -11 -10 -9 -9 ------- Run | Yrd Mat Mat Sto Peak Influence 227 | 5 171 72 227 Initial 72 | . 3 72 29 Average 59 | 2 87 72 61 Maximum Alert Level 1 | . . . 1 Low Security (%) 93 | 100 100 100 87 Level 1 6 | . . . 12 Level 2 . | . . . . Level 3 . | . . . . Level 4 . | . . . . Level 5 . | . . . . High Security . | . . . . Max Security . | . . . . Squads Dispatched 2 | . 1 . 1 Investigation 1 | . 1 . . Extermination . | . . . . Reinforcement . | . . . . Assault . | . . . . Garrison 1 | . . . 1 Intercept . | . . . . Searches Triggered . | . . . . Construction Impeded . | . . . . Haulers Reinforced . | . . . . Active Scanning Responses . | . . . . Cargo Convoy Interrupts . | . . . . Stealth | -11 -10 -9 -9 --------- Run | Yrd Mat Mat Sto Distress Signals 1 | . . . 1 Communications Jammed . | . . . . Distress Signals . | . . . . Times Spotted 20 | . 5 . 15 Peak Tracking Total 7 | . 2 . 7 Tactical Retreats 1 | . . . 1 Traps | -11 -10 -9 -9 ------- Run | Yrd Mat Mat Sto Traps Triggered 1 | . 1 . . Indirectly . | . . . . Trap Hack Attempts . | . . . . Triggered . | . . . . Disarmed . | . . . . Reprogrammed . | . . . . Reused . | . . . . Traps Extracted . | . . . . Installed . | . . . . Triggered . | . . . . Machines | -11 -10 -9 -9 ---------- Run | Yrd Mat Mat Sto Machines Disabled . | . . . . Max in Single Turn . | . . . . Machines Repaired . | . . . . Machines Dismantled . | . . . . Machines Sabotaged . | . . . . Overloaded Fab Kills . | . . . . Hacking | -11 -10 -9 -9 --------- Run | Yrd Mat Mat Sto Machines Accessed 3 | . 2 . 1 Terminals 2 | . 2 . . Fabricators . | . . . . Repair Stations 1 | . . . 1 Recycling Units . | . . . . Scanalyzers . | . . . . Garrison Access . | . . . . Total Hacks 10 | . 8 . 2 Successful 4 | . 2 . 2 Failed 6 | . 6 . . Catastrophic 1 | . 1 . . Database Lockouts . | . . . . Manual . | . . . . Terminals 8 | . 8 . . Fabricators . | . . . . Repair Stations 2 | . . . 2 Recycling Units . | . . . . Scanalyzers . | . . . . Garrison Access . | . . . . Terminal Hacks 2 | . 2 . . Prototype ID Bank 1 | . 1 . . Hauler Manifests 1 | . 1 . . Fabricator Hacks . | . . . . Repair Station Hacks 2 | . . . 2 Scan Component 1 | . . . 1 Repair 1 | . . . 1 Recycling Unit Hacks . | . . . . Scanalyzer . | . . . . Garrison Access Hacks . | . . . . Unauthorized Hacks . | . . . . Terminals . | . . . . Fabricators . | . . . . Repair Stations . | . . . . Recycling Units . | . . . . Scanalyzers . | . . . . Garrison Access . | . . . . Data Cores Recovered 1 | . 1 . . Used 1 | . 1 . . Hacking Detections 2 | . 2 . . Full Trace Events 2 | . 2 . . Feedback Events . | . . . . Feedback Blocked . | . . . . Robot Schematics Acquired . | . . . . Robots Built . | . . . . Authchips . | . . . . Time . | . . . . Total Robot Build Rating . | . . . . Part Schematics Acquired . | . . . . Parts Built . | . . . . Authchips . | . . . . Time . | . . . . Total Part Build Rating . | . . . . Parts Repaired 1 | . . . 1 Time 26 | . . . 26 Parts Recycled . | . . . . Recycled Matter . | . . . . Retrieved Matter . | . . . . Retrieved Components . | . . . . Parts Scanalyzed . | . . . . Part Schematics Acquired . | . . . . Parts Damaged . | . . . . Bothacking | -11 -10 -9 -9 ------------ Run | Yrd Mat Mat Sto Used RIF Installer . | . . . . Robots Hacked . | . . . . Non-combat . | . . . . Combat . | . . . . Robot Hacks Applied . | . . . . Relay Couplers Released . | . . . . Fabnet Peak Effective % . | . . . . Robots Rewired . | . . . . Allies Hacked . | . . . . Hacks Repelled . | . . . . Allies | -11 -10 -9 -9 -------- Run | Yrd Mat Mat Sto Total Allies . | . . . . Largest Group . | . . . . Highest-Rated Group . | . . . . Highest-Rated Ally . | . . . . Total Orders . | . . . . Ally Attacks . | . . . . Total Damage . | . . . . Kills . | . . . . Allies Corrupted . | . . . . Allies Melted . | . . . . Intel | -11 -10 -9 -9 ------- Run | Yrd Mat Mat Sto Robot Analysis Total . | . . . . Derelict Logs Recovered . | . . . . Drone Launches . | . . . . Drone Recoveries . | . . . . Exploration | -11 -10 -9 -9 ------------- Run | Yrd Mat Mat Sto Turns Passed 702 | 116 201 7 378 Spaces Moved 387 | 85 168 8 126 Core 22 | 13 . . 9 Treads . | . . . . Legs . | . . . . Wheels 365 | 72 168 8 117 Hover . | . . . . Flight . | . . . . Fastest Speed 50 | 50 90 90 80 Average Speed 91 | 88 90 90 96 Slowest Speed 200 | 100 90 90 200 Overloaded Moves . | . . . . Propulsion Burnouts . | . . . . Robots Hopped . | . . . . Cave-ins Triggered 5 | . . . 5 Exploration Rate (%) 13 | 4 25 2 23 Regions Visited 3 Branch Regions 1 Pre-discovered Areas . | . . . . Known Exits Taken . | . . . . Unknown Exits Taken 3 | 1 1 1 . Scrap Searched . | . . . . Spaces Dug 5 | . . . 5 Terrain Destroyed 54 | . 28 . 26 Melee 2 | . . . 2 Projectile 3 | . . . 3 AOE 49 | . 28 . 21 Terrain Rammed . | . . . . Walls Destroyed . | . . . . Machines Disabled . | . . . . Actions | -11 -10 -9 -9 --------- Run | Yrd Mat Mat Sto Total 581 | 113 193 7 268 Wait 40 | . . . 40 Move 384 | 84 167 7 126 Hop . | . . . . Pick Up 30 | 8 6 . 16 Fast Attach . | . . . . Attach 19 | 6 . . 13 Detach . | . . . . Swap 14 | . 5 . 9 Drop 5 | . 2 . 3 Fire 79 | 15 13 . 51 Melee 8 | . . . 8 Ram 2 | . . . 2 Kick . | . . . . Crush . | . . . . Escape Stasis . | . . . . Rewire . | . . . . Trap . | . . . . Miscellaneous . | . . . . Route ------- -11/Scrapyard -10/Materials -9/Materials -9/Storage History --------- Turn | Location | Event 16 | -11/Scrapyard | Discovered new exit (range 16) 117 | -11/Scrapyard | Entered Materials 256 | -10/Materials | Discovered new exit (range 16) 317 | -10/Materials | Build established: Mutant 318 | -10/Materials | Entered another Materials area 318 | -9/Materials | Evolved 2 slots: Propulsion x2 318 | -9/Materials | Discovered new exit (range 7) 325 | -9/Materials | Entered Storage 375 | -9/Storage | Repaired EM Pulse Gun 403 | -9/Storage | Crushed by falling debris 414 | -9/Storage | Crushed by falling debris 425 | -9/Storage | Crushed by falling debris 441 | -9/Storage | Crushed by falling debris 441 | -9/Storage | System corruption reached 10% 444 | -9/Storage | Crushed by falling debris 475 | -9/Storage | Lost 5 parts (1p2n2w) 667 | -9/Storage | Lost 4 parts (1p2n1w) 677 | -9/Storage | Destroyed 7 combat bots 692 | -9/Storage | Garrison activated, responded to threat 703 | -9/Storage | Self-destructed Last Messages --------------- Com. Wheel destroyed. U-05 Engineer lays Concrete. M-13 Machinist repairs Com. Wheel. U-05 Engineer lays Concrete. R-06 Scavenger collects Hover Unit. U-05 Engineer builds a Wall. R-06 Scavenger inserts Sml. Laser into recycling unit. Com. Wheel destroyed. R-06 Scavenger inserts Heat Sink into recycling unit. Critical hit (Burn: +37). System corrupted: Lgt. Assault Rifle rejected. R-06 Scavenger collects Lgt. Assault Rifle. U-05 Engineer lays Concrete. M-13 Machinist repairs U-05 Engineer. Imp. Ion Engine destroyed. R-06 Scavenger collects Structural Scanner. U-05 Engineer builds a Wall. EM Pulse Gun destroyed. Map ----- +----------------------------------------------------+ | | | | | | | | | ?????????????????????????????????????????????????? | | ?????????????????????????????????????????????????? | | ?????????????????????????????????????????????????? | | ?????????????????????????????????????????????????? | | ?????????????????????????????????????????????????? | | ?????????????????a???????????????????????????????? | | ?????????????????????????????????????????######### | | ?????????????????????????????????????????# | | ?????????????????????????????????????????# | | ??????????????????????????????????????####! | | ????????????????????????????????#######"## ##### | | ??????????????????????########### ! = ]! #???? | | ??????????????????? ###"#"] #???? | | ??????????????????? #?#### #???? | | ???????????????????###+########## !#????# #???? | | ???????????????????# ## !%#????# +???? | | ???????????????????# """"" ## !*#????# #???? | | ???????????????????# """"" ## #????# #???? | | ???????????????????# """"" # #????#a #???? | | ???????????????????# |!! ??# ####?# #???? | | ??????????????# ##+## ####### """#?# #???? | | ??????????????# % Y @ %!=%[Y= R"#?# #???? | | ??????????????# um r !! [ """#?# #???? | | ??????????????# #### % "["#### ####?# #???? | | ??????????????##+?####r# #"T"#??# #????# #???? | | ???????????????????? ###"""#??# #????? #???? | | ??????????????????? ""??#####??# #????? #???? | | ????????????????? Y??????????# #????? #???? | | ???????????????? [[[ "??????????# = #????? ????? | | ??????????????? [[ ???????????# #????????????? | | ??????????????# [[ ????????????# #????????????? | | ??????????????# ??????????????#####????????????? | | ??????????????# ????????????????????????????????? | | ?????????????????????????????????????????????????? | | ?????????????????????????????????????????????????? | | ?????????????????????????????????????????????????? | | ?????????????????????????????????????????????????? | | ?????????????????????????????????????????????????? | | ?????????????????????????????????????????????????? | | ?????????????????????????????????????????????????? | | ?????????????????????????????????????????????????? | | ?????????????????????????????????????????????????? | | ?????????????????????????????????????????????????? | | ??????????????????????a??????????????????????????? | | ?????????????????????????????????????????????????? | | ?????????????????????????????????????????????????? | +----------------------------------------------------+ Best States ------------- Heat Dissipation 28 Energy Generation 12 Energy Capacity 265 Matter Stores 300 Matter Capacity 300 Sight Range 16 Terrain Scan Density 10 Evasion (%) 44 Item Schematics ----------------- None Robot Schematics ------------------ None Fabricated ------------ Nothing Alien Tech Used ----------------- None Achievements -------------- Dynamic Key Challenges ------------ None Game ------ Seed GammaNetworkMultirail Manual? 0 Play Time 00:10:23 Cumulative 12.0 hours Start 2024.04.07 @ 01:00:05 End 2024.04.07 @ 01:09:34 Sessions 1 Manual Loads 0 Difficulty Rogue Special Mode None Game No. 30 Rogue 30 Adventurer 0 Explorer 0 Win Type - Total 0 Types 0/0/0/0/0/0/0/0/0 Lore% 15 Gallery% 23 Achievement% 18 Wizard Run 0 Options --------- Layout 1 ASCII 0 Keyboard 0 Movement Arrows Keybinds 0 Fullscreen 1 Font 24/Smallcaps Map View 50x35 Zoom Use 0% Tactical HUD 0 Map Filters NONE Filters NONE Steam 1 RUN: 71936321-1538-4db2-b2c5-31c7dc5f5fd0